bitfinex-derivatives/quotes_BTCF0:USTF0_20240814
["timestamp","ask_amount","ask_price","bid_price","bid_amount"]
[1723657440952,0.25440615,59113.0,59112.0,0.6163503]
[1723657441257,0.25440615,59113.0,59112.0,0.1317903]
[1723657441449,0.25440615,59113.0,59112.0,0.1457903]
[1723657441851,0.19519433,59113.0,59112.0,0.1457903]
[1723657442160,0.19519433,59113.0,59112.0,0.2303503]
[1723657442464,0.19619433,59113.0,59112.0,0.2243503]
[1723657445458,0.19619433,59113.0,59112.0,0.6243503]
[1723657446855,0.19619433,59113.0,59112.0,0.6173503]
[1723657447353,0.01209544,59125.0,59112.0,0.6173503]
[1723657447354,0.3608,59132.0,59123.0,0.084544]
[1723657447652,0.3608,59132.0,59128.0,0.084537]
[1723657448054,0.25506355,59131.0,59124.0,0.279841]
[1723657448352,0.00014368,59130.0,59124.0,0.1953]
[1723657448548,0.00014368,59130.0,59124.0,0.20713077]
[1723657448753,0.25213586,59129.0,59128.0,0.084536]
[1723657450248,0.25213586,59129.0,59124.0,0.30567377]
[1723657450449,0.084539,59127.0,59124.0,0.2093]
[1723657450757,0.25213586,59129.0,59124.0,0.2093]
[1723657451061,0.25488324,59126.0,59124.0,0.2093]
[1723657451257,0.25488324,59129.0,59125.0,0.0503983]
[1723657451462,0.25588324,59129.0,59128.0,0.012]
[1723657452157,0.085536,59129.0,59128.0,0.012]
[1723657452556,0.25589156,59129.0,59125.0,0.08372242]
[1723657452756,0.25489156,59129.0,59126.0,0.08372242]
[1723657453459,0.25489156,59129.0,59128.0,0.452337]
[1723657453657,0.25589156,59129.0,59128.0,0.58713053]
[1723657454160,0.25589156,59129.0,59128.0,0.58712502]
[1723657454553,0.25589156,59129.0,59128.0,0.66533413]
[1723657454554,0.25489156,59129.0,59128.0,0.66533413]
[1723657455159,0.25489156,59129.0,59128.0,0.65833413]
[1723657455464,0.25489156,59129.0,59128.0,0.52954611]
[1723657456366,0.25589156,59129.0,59128.0,0.53654611]
[1723657456563,0.25589156,59129.0,59128.0,0.452337]
[1723657456864,0.25689156,59129.0,59128.0,0.452337]
[1723657458166,0.25689156,59129.0,59128.0,0.459337]
[1723657459267,0.25489156,59129.0,59128.0,0.452337]
[1723657460666,0.25589156,59129.0,59128.0,0.459337]
[1723657460862,0.25689156,59129.0,59128.0,0.54354611]
[1723657461068,0.25689156,59129.0,59128.0,0.67225141]
[1723657461264,0.25689156,59129.0,59128.0,0.58811904]
[1723657461465,0.25689156,59129.0,59128.0,0.67224411]
[1723657461662,0.04563468,59129.0,59128.0,1.74861063]
[1723657461855,0.0192077,59129.0,59128.0,1.84938446]
[1723657462266,0.0192077,59129.0,59128.0,1.74861063]
[1723657462460,0.00025364,59133.0,59132.0,0.084531]
[1723657462668,0.00025364,59133.0,59132.0,0.44740117]
[1723657462968,0.25556597,59133.0,59132.0,0.82594912]
[1723657463355,0.25556597,59133.0,59132.0,1.141851]
[1723657463662,0.25556597,59133.0,59132.0,0.741851]
[1723657463663,0.25567713,59133.0,59132.0,0.741851]
[1723657463868,0.25567713,59133.0,59132.0,1.141851]
[1723657464069,0.25567713,59133.0,59132.0,1.143851]
[1723657464662,0.25567713,59133.0,59132.0,0.743851]
[1723657464863,0.25567713,59133.0,59132.0,1.143851]
[1723657465754,0.25567713,59133.0,59132.0,0.746851]
[1723657465955,0.25567713,59133.0,59132.0,1.15884131]
[1723657467260,0.25567713,59133.0,59132.0,0.10152131]
[1723657468080,0.25567713,59133.0,59132.0,0.16882513]
[1723657468879,0.25567713,59133.0,59132.0,0.08429413]
[1723657469076,0.25567713,59133.0,59132.0,0.01699031]
[1723657469370,0.25567713,59133.0,59132.0,0.08435206]
[1723657469566,0.25567713,59133.0,59132.0,0.01699031]
[1723657470365,0.25567713,59133.0,59132.0,0.08435639]
[1723657470858,0.25567713,59133.0,59132.0,0.16888739]
[1723657471064,0.25567713,59133.0,59132.0,0.01399031]
[1723657471272,0.25567713,59133.0,59132.0,0.08136054]
[1723657471663,0.25567713,59133.0,59132.0,0.16589154]
[1723657471958,0.25567713,59133.0,59132.0,0.002]
[1723657472359,0.25567713,59133.0,59132.0,0.06939287]
[1723657472570,0.25567713,59133.0,59132.0,0.092531]
[1723657473673,0.25567713,59133.0,59132.0,0.090531]
[1723657473871,0.25567713,59133.0,59132.0,0.092531]
[1723657474971,0.25567713,59133.0,59132.0,0.089531]
[1723657476173,1.28299713,59133.0,59130.0,0.06753355]
[1723657476390,1.28299713,59133.0,59126.0,0.05065529]
[1723657476391,0.084539,59127.0,59126.0,0.05065529]
[1723657476672,0.084546,59122.0,59121.0,0.05090893]
[1723657476982,0.49602097,59122.0,59121.0,0.05089265]
[1723657477174,1.25562555,59122.0,59121.0,0.00025364]
[1723657477479,1.25560798,59122.0,59121.0,0.00025364]
[1723657477680,1.20506174,59122.0,59121.0,0.00025364]
[1723657478873,0.084551,59118.0,59117.0,0.05063901]
[1723657479180,0.2923,59118.0,59110.0,0.13520001]
[1723657479369,0.3608,59111.0,59110.0,0.084561]
[1723657479768,0.61519321,59111.0,59110.0,0.084561]
[1723657480372,0.61519321,59111.0,59110.0,0.097561]
[1723657480582,0.61519321,59111.0,59110.0,0.111561]
[1723657480770,0.61519321,59111.0,59110.0,0.014]
[1723657480771,1.20738537,59111.0,59110.0,0.014]
[1723657480972,1.20838537,59111.0,59110.0,0.027]
[1723657482274,0.70086537,59111.0,59110.0,0.027]
[1723657482975,0.70086537,59111.0,59104.0,0.05009291]
[1723657482976,0.169138,59106.0,59104.0,0.05009291]
[1723657483179,0.084581,59097.0,59096.0,0.00929782]
[1723657483368,0.084586,59095.0,59089.0,0.00019378]
[1723657483577,0.084586,59095.0,59094.0,0.084585]
[1723657484276,0.33720481,59095.0,59094.0,0.084585]
[1723657484474,0.25261881,59095.0,59094.0,0.084585]
[1723657485371,0.69770624,59096.0,59094.0,0.084585]
[1723657485880,0.445383,59096.0,59094.0,0.084585]
[1723657486186,0.25425591,59095.0,59094.0,0.084585]
[1723657486875,0.25525591,59095.0,59094.0,0.098585]
[1723657490275,0.25625591,59095.0,59094.0,0.112585]
[1723657491580,0.25625591,59095.0,59094.0,1.150237]
[1723657491778,0.3608,59113.0,59100.0,0.084577]
[1723657492078,0.3608,59113.0,59109.0,0.084563]
[1723657492286,0.05308986,59110.0,59109.0,0.084564]
[1723657492675,0.001,59112.0,59111.0,0.084561]
[1723657492880,0.084554,59116.0,59111.0,0.084561]
[1723657493076,0.00025364,59115.0,59111.0,0.084561]
[1723657493785,0.25524196,59114.0,59112.0,0.08456]
[1723657494180,0.001,59113.0,59112.0,0.08456]
[1723657494785,0.25600389,59113.0,59112.0,0.08456]
[1723657495686,0.25700389,59113.0,59112.0,0.08456]
[1723657497978,0.25600389,59113.0,59112.0,0.08456]
[1723657502579,0.25600389,59113.0,59112.0,0.24456]
[1723657502783,0.25600389,59113.0,59112.0,0.32144]
[1723657503185,0.25600389,59113.0,59112.0,0.98896]
[1723657503577,0.25600389,59113.0,59112.0,1.05649355]
[1723657504085,0.25600389,59113.0,59112.0,0.98896]
[1723657504278,0.25600389,59113.0,59112.0,1.073521]
[1723657504480,0.25600389,59113.0,59112.0,1.14105455]
[1723657505381,0.25600389,59113.0,59112.0,1.073521]
[1723657506181,0.25600389,59113.0,59112.0,0.98896]
[1723657506394,0.25600389,59113.0,59112.0,0.32144]
[1723657506584,0.25600389,59113.0,59112.0,0.38877638]
[1723657506788,0.25600389,59113.0,59112.0,0.32144]
[1723657508484,0.25600389,59113.0,59112.0,0.48144]
[1723657508682,0.25600389,59113.0,59112.0,1.473521]
[1723657508886,0.14180971,59113.0,59112.0,1.60232463]
[1723657509388,0.11424971,59113.0,59112.0,1.60232463]
[1723657509885,0.04494971,59113.0,59112.0,1.68688563]
[1723657510290,0.04494971,59113.0,59112.0,1.558082]
[1723657510486,0.00025364,59115.0,59114.0,0.169116]
[1723657510694,0.00025364,59115.0,59114.0,0.91460837]
[1723657510891,0.25525266,59115.0,59114.0,1.04340578]
[1723657511379,0.25525266,59115.0,59114.0,0.91460837]
[1723657511584,0.25525266,59115.0,59114.0,0.91511322]
[1723657511986,0.25466237,59115.0,59114.0,1.56259322]
[1723657512181,0.23874681,59115.0,59114.0,1.96259322]
[1723657512382,0.24274681,59115.0,59114.0,1.96259322]
[1723657512686,0.17731592,59115.0,59114.0,2.17544109]
[1723657512890,0.11811972,59115.0,59114.0,2.09138794]
[1723657513080,0.004,59115.0,59114.0,2.09138794]
[1723657513289,0.3216,59135.0,59132.0,0.084531]
[1723657513582,0.3608,59137.0,59128.0,0.3608]
[1723657513778,0.3608,59137.0,59133.0,0.08453]
[1723657514091,0.3608,59137.0,59128.0,0.36105364]
[1723657514290,0.084529,59135.0,59130.0,0.084535]
[1723657514589,0.37048419,59137.0,59131.0,0.084533]
[1723657514787,0.25311503,59134.0,59131.0,0.084533]
[1723657514989,0.25311503,59134.0,59128.0,0.36105364]
[1723657515190,0.37048419,59137.0,59133.0,0.08453]
[1723657515591,0.25233434,59135.0,59133.0,0.08453]
[1723657515992,0.37048419,59137.0,59133.0,0.08453]
[1723657516384,0.25283332,59134.0,59133.0,0.08453]
[1723657516895,0.006,59135.0,59134.0,0.084529]
[1723657517389,0.26742232,59135.0,59134.0,0.084529]
[1723657518291,0.25942232,59135.0,59134.0,0.084529]
[1723657519196,0.26742232,59135.0,59134.0,0.085529]
[1723657519394,0.26142232,59135.0,59134.0,0.085529]
[1723657520288,0.25342232,59135.0,59134.0,0.084529]
[1723657520490,0.25742232,59135.0,59134.0,0.084529]
[1723657520795,0.25320283,59136.0,59134.0,0.084529]
[1723657520988,0.25320283,59136.0,59135.0,0.084528]
[1723657521189,0.09400206,59142.0,59137.0,0.084524]
[1723657521590,0.25356851,59138.0,59137.0,0.084524]
[1723657524494,0.25656851,59138.0,59137.0,0.084524]
[1723657524700,0.61736851,59138.0,59137.0,0.084524]
[1723657525497,0.61936851,59138.0,59137.0,0.084524]
[1723657525888,0.61936851,59138.0,59132.0,0.00969639]
[1723657526101,0.61936851,59138.0,59128.0,0.36105364]
[1723657526102,0.2923,59136.0,59128.0,0.36197364]
[1723657526305,0.3644,59135.0,59128.0,0.44559164]
[1723657526595,0.70413764,59135.0,59128.0,0.36105364]
[1723657526798,0.61960964,59135.0,59134.0,0.084529]
[1723657527498,0.25520964,59135.0,59134.0,0.084529]
[1723657527898,0.3608,59137.0,59129.0,0.256836]
[1723657527899,0.25508687,59136.0,59135.0,0.084527]
[1723657529000,0.00025364,59139.0,59138.0,0.084523]
[1723657529399,0.25437193,59139.0,59138.0,0.445323]
[1723657532091,0.25837193,59139.0,59138.0,0.445323]
[1723657532497,0.26137193,59139.0,59138.0,0.445323]
[1723657533199,0.34589393,59139.0,59138.0,0.3608]
[1723657533400,0.26137193,59139.0,59138.0,0.3608]
[1723657533705,0.26137193,59139.0,59138.0,0.445323]
[1723657535096,0.26237193,59139.0,59138.0,0.51250017]
[1723657535296,0.25837193,59139.0,59138.0,0.51250017]
[1723657535704,0.26337193,59139.0,59138.0,0.51250017]
[1723657536200,0.26237193,59139.0,59138.0,0.51250017]
[1723657536505,0.26637193,59139.0,59138.0,0.445323]
[1723657540402,0.26637193,59139.0,59138.0,0.972146]
[1723657540604,0.26637193,59139.0,59138.0,2.00818531]
[1723657540803,0.26637193,59139.0,59138.0,2.09270831]
[1723657541107,0.05051799,59154.0,59139.0,0.084522]
[1723657541304,0.05051799,59157.0,59154.0,0.0845]
[1723657541608,0.00972739,59157.0,59154.0,0.0845]
[1723657541908,0.084498,59157.0,59153.0,0.3608]
[1723657542102,0.05051799,59158.0,59153.0,0.3608]
[1723657542296,0.1724,59160.0,59153.0,0.3608]
[1723657542297,0.05051799,59157.0,59153.0,0.3608]
[1723657542601,0.25524624,59155.0,59154.0,0.0845]
[1723657543002,0.25330628,59157.0,59156.0,0.084497]
[1723657543306,0.25330628,59157.0,59156.0,0.51274542]
[1723657543607,0.00025364,59161.0,59160.0,0.084492]
[1723657544010,0.25341039,59161.0,59157.0,0.06737653]
[1723657544199,0.25341039,59161.0,59156.0,0.42817653]
[1723657544510,0.25341039,59161.0,59160.0,0.084492]
[1723657546606,0.25341039,59161.0,59160.0,0.085492]
[1723657546917,0.25341039,59161.0,59160.0,0.086492]
[1723657547306,0.25341039,59161.0,59160.0,0.09599271]
[1723657548006,0.25741039,59161.0,59160.0,0.09699271]
[1723657549403,0.25341039,59161.0,59160.0,0.09599271]
[1723657550215,0.25341039,59161.0,59160.0,0.09699271]
[1723657550216,0.43118386,59161.0,59160.0,0.09699271]
[1723657550416,0.3631031,59161.0,59160.0,0.087492]
[1723657550714,0.36303285,59161.0,59160.0,0.07874281]
[1723657554615,0.36278128,59161.0,59160.0,0.07874281]
[1723657555614,0.49735956,59161.0,59160.0,0.07874281]
[1723657556512,0.3627752,59161.0,59160.0,0.07874281]
[1723657557411,0.497292,59161.0,59160.0,0.07874281]
[1723657557617,0.3627752,59161.0,59160.0,0.07874281]
[1723657558308,0.25741039,59161.0,59160.0,0.07874281]
[1723657559318,0.25741039,59161.0,59160.0,0.003]
[1723657559618,0.76449039,59161.0,59160.0,0.003]
[1723657559820,0.84898039,59161.0,59160.0,0.003]
[1723657560011,0.84898039,59161.0,59160.0,0.087492]
[1723657560213,0.85838491,59161.0,59160.0,0.087492]
[1723657560614,0.35130491,59161.0,59160.0,0.087492]
[1723657560819,0.25741039,59161.0,59160.0,0.087492]
[1723657561120,0.25741039,59161.0,59160.0,0.171984]
[1723657561713,0.25741039,59161.0,59160.0,0.087492]
[1723657562720,0.25741039,59161.0,59160.0,0.61716853]
[1723657562920,0.25741039,59161.0,59160.0,0.38929258]
[1723657563826,0.25741039,59161.0,59160.0,0.09699258]
[1723657566117,0.25741039,59161.0,59160.0,0.27309258]
[1723657567420,0.25741039,59161.0,59160.0,0.56539258]
[1723657568215,0.25741039,59161.0,59160.0,0.64988458]
[1723657568416,0.25741039,59161.0,59160.0,0.56539258]
[1723657569316,0.25741039,59161.0,59160.0,0.64988458]
[1723657569722,0.25741039,59161.0,59160.0,0.56539258]
[1723657570123,0.25741039,59161.0,59160.0,0.27309258]
[1723657571825,0.25741039,59161.0,59160.0,0.09699258]
[1723657572427,0.30785445,59161.0,59160.0,0.16431339]
[1723657572731,0.30785445,59161.0,59160.0,0.33431339]
[1723657573326,0.25741039,59161.0,59160.0,0.39569847]
[1723657574429,0.25741039,59161.0,59160.0,0.14120647]
[1723657574627,0.25741039,59161.0,59160.0,0.24246345]
[1723657575619,0.25741039,59161.0,59160.0,0.22569847]
[1723657575827,0.25741039,59161.0,59160.0,0.32695545]
[1723657576031,0.25741039,59161.0,59160.0,0.58144745]
[1723657576330,0.25741039,59161.0,59160.0,0.48019047]
[1723657576929,0.25741039,59161.0,59160.0,0.62697243]
[1723657577127,0.25741039,59161.0,59160.0,0.54248043]
[1723657577731,0.25741039,59161.0,59160.0,0.74208043]
[1723657578328,0.25741039,59161.0,59160.0,0.59529847]
[1723657579325,0.25741039,59161.0,59160.0,0.39569847]
[1723657579534,0.25741039,59161.0,59160.0,0.48689903]
[1723657579727,0.25741039,59161.0,59160.0,0.22569847]
[1723657579923,0.25741039,59161.0,59160.0,0.22569881]
[1723657580621,0.25741039,59161.0,59160.0,0.14120681]
[1723657580827,0.34190039,59161.0,59160.0,0.003]
[1723657581321,1.23174914,59161.0,59156.0,0.06749594]
[1723657581525,1.23174914,59161.0,59153.0,0.06749594]
[1723657581526,0.084497,59156.0,59153.0,0.06749594]
[1723657581720,0.05062465,59154.0,59152.0,0.06749594]
[1723657582241,0.25228816,59153.0,59152.0,0.06749594]
[1723657582632,0.25228816,59154.0,59152.0,0.15199794]
[1723657583135,0.25228816,59153.0,59152.0,0.15199794]
[1723657583325,0.05062465,59156.0,59152.0,0.084502]
[1723657583527,0.05062465,59156.0,59151.0,0.06749594]
[1723657583528,0.084501,59153.0,59151.0,0.06749594]
[1723657583835,0.084501,59153.0,59152.0,0.001]
[1723657583836,0.34283727,59153.0,59152.0,0.001]
[1723657584333,0.34283727,59153.0,59152.0,0.086503]
[1723657584534,0.25833627,59153.0,59152.0,0.086503]
[1723657584731,0.004,59153.0,59152.0,0.086503]
[1723657584935,0.004,59153.0,59152.0,0.15299894]
[1723657585230,0.004,59153.0,59152.0,0.15393776]
[1723657585231,0.25979581,59153.0,59152.0,0.15393776]
[1723657585432,0.25979581,59153.0,59152.0,0.086503]
[1723657586330,0.25579581,59153.0,59152.0,0.086503]
[1723657587141,0.25579581,59153.0,59152.0,0.085503]
[1723657587333,0.26079581,59153.0,59152.0,0.086503]
[1723657588138,0.26079581,59153.0,59152.0,0.002]
[1723657588333,0.34529681,59153.0,59152.0,0.002]
[1723657589136,1.25245681,59153.0,59152.0,0.002]
[1723657589439,0.85245681,59153.0,59152.0,0.002]
[1723657589738,0.27047168,59153.0,59152.0,0.002]
[1723657589938,0.26079581,59153.0,59152.0,0.086503]
[1723657590539,0.26079581,59153.0,59152.0,0.15393946]
[1723657591139,0.26079581,59153.0,59152.0,0.15388403]
[1723657591734,0.26079581,59153.0,59152.0,0.15388071]
[1723657591938,0.25779581,59153.0,59152.0,1.29330716]
[1723657592242,0.00025364,59161.0,59160.0,0.084491]
[1723657592446,0.00025364,59161.0,59160.0,0.907591]
[1723657592637,0.25386519,59161.0,59160.0,1.414671]
[1723657593648,0.25386519,59161.0,59160.0,0.907591]
[1723657593848,0.25386519,59161.0,59160.0,1.415671]
[1723657594035,0.25486519,59161.0,59160.0,0.909591]
[1723657594238,0.25486519,59161.0,59160.0,0.617291]
[1723657596344,0.25486519,59161.0,59160.0,1.29147094]
[1723657596561,0.3216,59175.0,59174.0,0.084471]
[1723657596862,0.1874,59182.0,59179.0,0.084463]
[1723657597073,0.37222465,59185.0,59180.0,0.084463]
[1723657597259,0.25356482,59181.0,59180.0,0.084463]
[1723657597457,0.25356482,59181.0,59180.0,0.445263]
[1723657597652,0.25356482,59182.0,59180.0,0.445263]
[1723657597853,0.41552003,59185.0,59180.0,0.445263]
[1723657598470,0.25364857,59182.0,59181.0,0.084461]
[1723657598669,0.25364857,59184.0,59183.0,0.084459]
[1723657598861,0.25364857,59186.0,59183.0,0.084459]
[1723657599172,0.25364857,59186.0,59185.0,0.3608]
[1723657599968,0.25364857,59186.0,59185.0,0.445256]
[1723657600357,0.25232235,59188.0,59185.0,0.445256]
[1723657600758,0.25307055,59186.0,59185.0,0.445256]
[1723657600959,0.25307055,59190.0,59185.0,0.445256]
[1723657601156,0.25307055,59190.0,59186.0,0.084454]
[1723657601157,0.25307055,59187.0,59186.0,0.084454]
[1723657601962,0.084439,59197.0,59190.0,0.084448]
[1723657602165,0.25373722,59191.0,59190.0,0.445248]
[1723657602558,0.37222465,59193.0,59190.0,0.445248]
[1723657602964,0.25307516,59192.0,59190.0,0.445248]
[1723657603463,0.25307516,59192.0,59191.0,0.084447]
[1723657604173,0.25307516,59192.0,59190.0,0.3608]
[1723657604559,0.25307516,59192.0,59190.0,0.3618]
[1723657604763,0.25354659,59193.0,59190.0,0.446248]
[1723657604966,0.25354659,59193.0,59191.0,0.084447]
[1723657605165,0.084444,59194.0,59191.0,0.085447]
[1723657605567,0.084444,59194.0,59192.0,0.084445]
[1723657605763,0.084444,59194.0,59193.0,0.084444]
[1723657606372,0.00987037,59195.0,59194.0,0.084444]
[1723657606576,0.32936265,59198.0,59196.0,0.08444]
[1723657606769,0.298738,59198.0,59196.0,0.08444]
[1723657606964,0.25332115,59197.0,59196.0,0.08444]
[1723657607167,0.26332115,59197.0,59196.0,0.08444]
[1723657607572,0.34776115,59197.0,59196.0,0.08444]
[1723657607767,1.25456115,59197.0,59196.0,0.08444]
[1723657608477,1.25456115,59197.0,59196.0,0.08544]
[1723657608775,0.34776115,59197.0,59196.0,0.08544]
[1723657610576,0.34776115,59197.0,59196.0,0.001]
[1723657610778,0.084449,59191.0,59188.0,0.00025343]
[1723657610977,0.084449,59191.0,59190.0,0.084449]
[1723657611179,0.484449,59191.0,59190.0,0.084449]
[1723657611478,0.591289,59191.0,59190.0,0.084449]
[1723657611676,0.84538119,59191.0,59190.0,0.084449]
[1723657612183,0.84538119,59191.0,59190.0,0.085449]
[1723657612876,0.33854119,59191.0,59190.0,0.085449]
[1723657613272,0.33854119,59191.0,59190.0,0.446249]
[1723657613273,0.25409219,59191.0,59190.0,0.446249]
[1723657613873,0.33888466,59197.0,59190.0,0.3618]
[1723657614074,0.37888466,59197.0,59195.0,0.084442]
[1723657614274,0.124441,59197.0,59196.0,0.084441]
[1723657614669,0.37853576,59197.0,59196.0,0.084441]
[1723657614880,0.29409476,59197.0,59196.0,0.084441]
[1723657615474,0.29409476,59197.0,59196.0,0.445241]
[1723657615785,0.25409476,59197.0,59196.0,0.445241]
[1723657616080,0.25409476,59197.0,59196.0,0.446241]
[1723657616686,0.25204346,59202.0,59201.0,0.084434]
[1723657617169,0.084431,59203.0,59201.0,0.084434]
[1723657617376,0.094431,59203.0,59201.0,0.084434]
[1723657617576,0.32022362,59202.0,59201.0,0.084434]
[1723657618282,0.25296487,59202.0,59201.0,0.084434]
[1723657618680,0.25296487,59202.0,59201.0,0.085434]
[1723657618879,0.25296487,59202.0,59201.0,0.447234]
[1723657619285,0.25491676,59203.0,59202.0,0.084432]
[1723657619670,0.32200445,59205.0,59201.0,0.3628]
[1723657619671,0.06708769,59205.0,59201.0,0.3628]
[1723657619877,0.06708769,59205.0,59204.0,0.08443]
[1723657620077,0.07651955,59205.0,59204.0,0.08443]
[1723657620278,0.26437749,59205.0,59204.0,0.08443]
[1723657621283,0.34880549,59205.0,59204.0,0.08443]
[1723657621478,0.43287893,59205.0,59204.0,0.08443]
[1723657621678,0.34880549,59205.0,59204.0,0.08443]
[1723657622185,0.43287893,59205.0,59204.0,0.08443]
[1723657623185,0.37617276,59205.0,59204.0,0.08543]
[1723657623578,0.3484135,59205.0,59204.0,0.08543]
[1723657623787,0.26437749,59205.0,59204.0,0.08543]
[1723657624491,0.25494563,59205.0,59204.0,0.08543]
[1723657624886,0.08403601,59207.0,59206.0,0.084427]
[1723657625187,0.10088813,59210.0,59206.0,0.3608]
[1723657625487,0.25306038,59207.0,59206.0,0.445227]
[1723657625789,0.274216,59214.0,59211.0,0.08442]
[1723657626091,0.25306038,59213.0,59211.0,0.44522]
[1723657626281,0.25306038,59213.0,59212.0,0.084418]
[1723657627493,0.31460636,59214.0,59213.0,0.084417]
[1723657627987,0.05992045,59214.0,59213.0,0.084417]
[1723657628187,0.00946193,59214.0,59213.0,0.084417]
[1723657628389,0.25268502,59214.0,59213.0,0.084417]
[1723657629393,0.26268502,59214.0,59213.0,0.084417]
[1723657629894,0.26268502,59214.0,59213.0,0.085417]
[1723657630085,0.25268502,59214.0,59213.0,0.085417]
[1723657630490,0.33938292,59219.0,59216.0,0.084412]
[1723657630694,0.25497392,59218.0,59216.0,0.084412]
[1723657631088,0.09419688,59219.0,59216.0,0.084412]
[1723657631289,0.08441,59218.0,59216.0,0.084412]
[1723657631596,0.084411,59217.0,59216.0,0.084412]
[1723657632093,0.3361854,59217.0,59216.0,0.084412]
[1723657632395,0.3361854,59217.0,59216.0,0.085412]
[1723657633189,0.3361854,59217.0,59216.0,0.086412]
[1723657633898,0.3361854,59217.0,59216.0,0.087412]
[1723657635193,0.3361854,59217.0,59216.0,0.448212]
[1723657635194,0.2517744,59217.0,59216.0,0.448212]
[1723657635596,0.41125852,59227.0,59216.0,0.448212]
[1723657635597,0.084403,59223.0,59222.0,0.084404]
[1723657635801,0.084403,59223.0,59222.0,0.445204]
[1723657636003,0.33850728,59223.0,59222.0,0.445204]
[1723657636190,0.3480047,59223.0,59222.0,0.445204]
[1723657636597,0.2636017,59223.0,59222.0,0.445204]
[1723657636898,0.2636017,59223.0,59222.0,0.446204]
[1723657637097,0.2636017,59223.0,59222.0,0.447204]
[1723657638597,0.25410428,59223.0,59222.0,0.447204]
[1723657639001,0.00096001,59229.0,59228.0,0.084395]
[1723657639201,0.08439,59232.0,59231.0,0.084391]
[1723657639407,0.25369098,59229.0,59228.0,0.3608]
[1723657639799,0.00051537,59231.0,59230.0,0.084392]
[1723657640010,0.25369098,59234.0,59233.0,0.084388]
[1723657640201,0.00964661,59238.0,59235.0,0.084385]
[1723657640395,0.33755253,59239.0,59235.0,0.084385]
[1723657640591,0.25317253,59234.0,59233.0,0.27638486]
[1723657640797,0.36959415,59234.0,59233.0,0.36077286]
[1723657640998,0.17975854,59234.0,59233.0,0.65307286]
[1723657641197,0.06226324,59234.0,59233.0,0.65307286]
[1723657641505,0.31543577,59234.0,59233.0,0.65307286]
[1723657641707,0.31543577,59234.0,59233.0,1.56912358]
[1723657641892,0.28052567,59234.0,59233.0,1.65351158]
[1723657642101,0.27952567,59234.0,59233.0,1.65351158]
[1723657642705,0.25317253,59234.0,59233.0,1.65351158]
[1723657643099,0.25317253,59234.0,59233.0,1.57012358]
[1723657643299,0.00986425,59247.0,59233.0,1.57012358]
[1723657643300,0.35230308,59235.0,59234.0,0.084387]
[1723657643704,0.35230308,59235.0,59234.0,0.990867]
[1723657643901,0.35228424,59235.0,59234.0,0.990867]
[1723657644104,0.10054859,59236.0,59235.0,0.084385]
[1723657644296,0.10054859,59236.0,59235.0,0.269285]
[1723657644496,0.3538554,59236.0,59235.0,1.175725]
[1723657644802,0.25330681,59236.0,59235.0,1.26011]
[1723657644999,0.3370678,59236.0,59235.0,1.26011]
[1723657645199,0.3370678,59236.0,59235.0,1.23134]
[1723657645200,0.06698465,59236.0,59235.0,1.23134]
[1723657645505,0.07576099,59243.0,59242.0,0.084375]
[1723657645704,0.10054859,59252.0,59243.0,0.084374]
[1723657645903,0.25193398,59247.0,59243.0,0.084374]
[1723657646102,0.25193398,59247.0,59246.0,0.3608]
[1723657646304,0.25333276,59251.0,59250.0,0.084363]
[1723657646505,0.25333276,59251.0,59250.0,0.681563]
[1723657646709,0.10054859,59255.0,59250.0,0.5972]
[1723657647006,0.10054859,59254.0,59251.0,0.1843]
[1723657647202,0.25333276,59253.0,59252.0,0.08436]
[1723657647404,0.25333276,59254.0,59253.0,0.084359]
[1723657647704,0.06688329,59254.0,59253.0,0.50632]
[1723657648003,0.06688329,59254.0,59253.0,0.990679]
[1723657648004,0.06688262,59254.0,59253.0,0.990679]
[1723657648212,0.06682859,59255.0,59254.0,0.084358]
[1723657648395,0.06683853,59255.0,59254.0,0.461016]
[1723657648599,0.1977,59274.0,59254.0,0.461016]
[1723657648600,0.1977,59274.0,59254.0,1.19858]
[1723657648800,0.25343836,59269.0,59268.0,0.445137]
[1723657648998,0.25343836,59264.0,59263.0,0.3608]
[1723657650202,0.20709251,59274.0,59263.0,0.3608]
[1723657650710,0.25468283,59264.0,59263.0,0.3608]
[1723657650915,0.25468283,59268.0,59263.0,0.3608]
[1723657651105,0.084339,59268.0,59263.0,0.445144]
[1723657651507,0.25468283,59273.0,59263.0,0.445144]
[1723657651508,0.084332,59272.0,59263.0,0.3618]
[1723657651702,0.25429754,59267.0,59266.0,0.08434]
[1723657652206,0.25429754,59271.0,59270.0,0.084335]
[1723657654605,0.1977,59274.0,59273.0,0.08433]
[1723657654912,0.1977,59274.0,59273.0,0.44513]
[1723657655099,0.45088551,59274.0,59273.0,0.44513]
[1723657655606,0.92081052,59274.0,59273.0,0.14147713]
[1723657656610,0.92081052,59274.0,59268.0,0.31158396]
[1723657656907,0.23821964,59273.0,59268.0,0.31158396]
[1723657657116,0.26555335,59272.0,59268.0,0.31158396]
[1723657657411,0.26555335,59271.0,59270.0,0.08434]
[1723657657603,0.62635335,59271.0,59268.0,0.00946658]
[1723657657803,0.26555335,59270.0,59266.0,0.2923]
[1723657658003,0.26555335,59269.0,59266.0,0.2923]
[1723657658199,0.26555335,59268.0,59267.0,0.084344]
[1723657658607,0.51957453,59268.0,59267.0,0.084344]
[1723657661303,0.50210293,59268.0,59267.0,0.084344]
[1723657661703,0.40894704,59268.0,59267.0,0.084344]
[1723657662204,0.40894704,59268.0,59267.0,0.085344]
[1723657662507,0.50310293,59268.0,59267.0,0.086344]
[1723657662710,0.25502118,59268.0,59267.0,0.086344]
[1723657663008,0.25502118,59268.0,59254.0,0.3608]
[1723657663009,1.53782618,59268.0,59258.0,0.00025321]
[1723657663215,0.805958,59259.0,59249.0,0.00954734]
[1723657663512,0.3608,59250.0,59249.0,0.084372]
[1723657663712,0.3608,59250.0,59246.0,0.23628]
[1723657664017,0.61386132,59250.0,59246.0,0.23628]
[1723657665004,0.90616132,59250.0,59242.0,0.00025321]
[1723657665202,0.3608,59243.0,59242.0,0.00025321]
[1723657665611,0.80818346,59243.0,59242.0,0.00025321]
[1723657665913,0.80818346,59243.0,59242.0,0.08463521]
[1723657666614,0.80818346,59243.0,59242.0,0.08863521]
[1723657668502,0.61298346,59243.0,59242.0,0.08863521]
[1723657668912,0.61698346,59243.0,59242.0,0.08463521]
[1723657669211,0.3704701,59250.0,59247.0,0.084375]
[1723657669212,0.05006179,59248.0,59247.0,0.084375]